Cogmind - Beta 13 @@@ ROGUE MODE // 2024.04.20 @ 20:52:58 Player: alice_fexa Result: Destroyed by 6D-Z7F(R) with Subdweller Machine Gun Performance ------------- Evolutions (0) 0 Regions Visited (2) 400 Robots Destroyed (33) 165 Value Destroyed (919) 919 Prototype IDs (0) 0 Alien Tech Used (0) 0 Bonus (0) 0 TOTAL SCORE: 1484 Bonus ------- None Cogmind --------- Core Integrity 0/250 Matter 231/300 Energy 206/250 System Corruption 0% Temperature Cool (0) Movement Treading (240) Ox1 Location -10/Subcaves Parts ------- > --- POWER (1) -------- Ion Engine > --- PROPULSION (2) --- Light Treads Subdweller Monowheel > --- UTILITY (2) ------ Improved Heat Sink Large Storage Unit > --- WEAPON (2) ------- Subdweller Laser Subdweller Beam Cannon > --- INVENTORY (15) --- Subdweller Power Source Light Treads Arachnoskeleton Wheel Subdweller Monowheel Heat Sink High-capacity Matter Pod (200) Structural Scanner Beam Cannon Subdweller Beam Cannon Grenade Launcher Grenade Launcher Makeshift Hammer Peak State ------------ > --- POWER ------------ Light Ion Engine > --- PROPULSION ------- Light Treads Subdweller Monowheel > --- UTILITY ---------- Improved Heat Sink Large Storage Unit > --- WEAPON ----------- Subdweller Laser Subdweller Beam Cannon > --- INVENTORY -------- Subdweller Power Source Light Treads Arachnoskeleton Wheel Subdweller Monowheel Heat Sink High-capacity Matter Pod Structural Scanner Beam Cannon Subdweller Beam Cannon Grenade Launcher Grenade Launcher Makeshift Hammer [Rating: 15] Favorites ----------- Power Light Ion Engine Engine Light Ion Engine Propulsion Light Treads Treads Light Treads Wheel Wheel Utility Large Storage Unit Device Structural Scanner Storage Large Storage Unit Weapon Particle Gun Energy Gun Particle Gun Energy Cannon Beam Cannon Ballistic Gun Light Assault Rifle Ballistic Cannon Battle Cannon Launcher Grenade Launcher Impact Weapon Makeshift Hammer Build | -11 -10 -10 ------- Run | Yrd Mat Sub Slots Evolved . | . . . Power . | . . . Propulsion . | . . . Utility . | . . . Weapon . | . . . Parts Attached 53 | 6 23 24 Power 6 | 1 3 2 Engine 6 | 1 3 2 Core . | . . . Reactor . | . . . Propulsion 11 | 2 6 3 Treads 5 | 1 2 2 Leg . | . . . Wheel 6 | 1 4 1 Hover . | . . . Flight . | . . . Utility 12 | 1 5 6 Device 9 | . 3 6 Storage 3 | 1 2 . Processor . | . . . Hackware . | . . . Protection . | . . . Artifact . | . . . Weapon 24 | 2 9 13 Energy Gun 10 | 1 4 5 Energy Cannon 3 | . 2 1 Ballistic Gun 5 | 1 2 2 Ballistic Cannon 1 | . . 1 Launcher 3 | . 1 2 Special Weapon . | . . . Impact Weapon 2 | . . 2 Slashing Weapon . | . . . Piercing Weapon . | . . . Special Melee Weapon . | . . . Unidentified Prototypes . | . . . Parts Lost 5 | . 1 4 Power 1 | . . 1 Propulsion 2 | . . 2 Utility . | . . . Weapon 2 | . 1 1 Highest Loss Streak 2 | . 1 2 To Critical Strikes . | . . . Average Slot Usage (%) 99 | . 98 99 Engine 13 | . 14 13 Treads 15 | . 13 17 Wheel 11 | . 14 10 Device 13 | . 13 14 Storage 14 | . 14 14 Energy Gun 12 | . 12 12 Energy Cannon 1 | . 1 . Ballistic Gun 7 | . 12 3 Ballistic Cannon 3 | . . 6 Launcher 1 | . . 2 Naked Turns . | . . . Heaviest Build 38 | 13 32 38 Greatest Support 40 | 10 20 40 Greatest Overweight (x) 3 | 1 3 2 Average Overweight (x) 1 | . 1 1 Largest Inventory Capacity 15 | 8 15 15 Average Capacity 13 | 7 11 15 Most Carried 15 | 6 15 15 Average Carried 12 | 3 10 14 Final Capacity 15 | 8 15 15 Final Carried 15 | 6 15 15 Class Distribution -------------------- 82% | Scavenger-Mutant 17% | Mutant Dominant Class ---------------- Scavenger-Mutant | -10/Materials Scavenger-Mutant | -10/Subcaves Resources | -11 -10 -10 ----------- Run | Yrd Mat Sub Matter Collected 1096 | 264 504 328 Remotely . | . . . Salvage Created 1221 | 93 792 336 Parts 71 | 2 48 21 Haulers Intercepted 2 | . 2 . Recyclers Shooed . | . . . Parts Field Recycled . | . . . Retrieved Matter . | . . . Parts Self-Destructed 8 | . . 8 Prevented . | . . . Kills | -11 -10 -10 ------- Run | Yrd Mat Sub Combat Hostiles Destroyed 25 | . 13 12 Guns 13 | . 9 4 Cannons 9 | . 4 5 AOE 3 | . . 3 Classes Destroyed 8 | 1 5 2 Builder 3 | . 3 . Tunneler 1 | . 1 . Hauler 2 | . 2 . Recycler 1 | 1 . . Watcher 1 | . 1 . Swarmer 3 | . . 3 Grunt 13 | . 13 . Subdweller 9 | . . 9 Best Kill Streak 5 | 1 5 3 Combat Bots Only 5 | . 5 3 Max Kills in Single Turn 2 | 1 1 2 Gunslinging . | . . . Exploded 2 | . . 2 Melee . | . . . Uniques/NPCs Destroyed . | . . . Combat | -11 -10 -10 -------- Run | Yrd Mat Sub Hostile Shots Fired 102 | . 56 46 Missed 24 | . 15 9 Damage Taken 1526 | . 648 878 Core 265 | . 100 165 Absorbed by Shields . | . . . Regen/Repaired (Parts) 162 | . 162 . Core Remaining (%) 100 | 100 . . Volleys Fired 128 | 4 76 48 Largest 2 | 2 2 2 Hottest 145 | 70 110 145 Shots Fired 238 | 8 151 79 Gun 188 | 8 135 45 Cannon 41 | . 15 26 Launcher 9 | . 1 8 Special . | . . . Kinetic 98 | 4 69 25 Thermal 125 | 4 81 40 Explosive 9 | . 1 8 Electromagnetic 6 | . . 6 Robot Hit Streak 15 | 4 15 12 Robot Miss Streak 6 | 2 6 2 Penetration Max . | . . . Secondary Targets . | . . . Shots Hit Robots 158 | 5 105 48 Core Hits 63 | 2 42 19 Critical Kills . | . . . Critical Parts Destroyed . | . . . Critical Strikes 2 | . 1 1 Burn 2 | . 1 1 Melee Attacks 7 | . . 7 Impact 7 | . . 7 Slashing . | . . . Piercing . | . . . Sneak Attacks . | . . . Combat Hostiles . | . . . Follow-up Attacks . | . . . Damage Inflicted 2300 | 52 1270 978 Guns 1487 | 52 1039 396 Cannons 648 | . 231 417 Explosions 165 | . . 165 Melee . | . . . Ramming . | . . . Kinetic 682 | 15 365 302 Thermal 1453 | 37 905 511 Explosive 165 | . . 165 Electromagnetic . | . . . Impact . | . . . Slashing . | . . . Piercing . | . . . Highest Corruption . | . . . Average Corruption . | . . . Corruption Purged . | . . . Corruption Blocked . | . . . Overload Shots . | . . . Overflow Damage 10 | . . 10 Projectiles . | . . . Explosions 10 | . . 10 Melee . | . . . Knockbacks 4 | . . 4 Impact . | . . . Kinetic 4 | . . 4 Secondary . | . . . Self-Inflicted Damage . | . . . Shots . | . . . Rammed . | . . . Targets Rammed . | . . . Kicked . | . . . Crushed . | . . . Highest Temperature 151 | 40 151 20 Average Temperature 35 | 23 39 5 Received Heat Transfer 414 | . 276 138 Siege Activations . | . . . Robots Corrupted . | . . . Combat Hostiles . | . . . Parts Fried . | . . . Impact Corruptions . | . . . Robots Melted . | . . . Combat Hostiles . | . . . Parts Melted 5 | . 4 1 Heat Transferred 3469 | 111 2309 1049 Parts Sabotaged . | . . . Parts Stolen . | . . . Parts Stripped . | . . . Power Chain Reactions . | . . . Alert | -11 -10 -10 ------- Run | Yrd Mat Sub Peak Influence 263 | 5 263 . Initial 3 | . 3 . Average 90 | 1 95 . Maximum Alert Level 1 | . 1 . Low Security (%) 91 | 100 91 . Level 1 8 | . 8 . Level 2 . | . . . Level 3 . | . . . Level 4 . | . . . Level 5 . | . . . High Security . | . . . Max Security . | . . . Squads Dispatched 3 | . 3 . Investigation 1 | . 1 . Extermination . | . . . Reinforcement 2 | . 2 . Assault . | . . . Garrison . | . . . Intercept . | . . . Searches Triggered . | . . . Construction Impeded . | . . . Haulers Reinforced . | . . . Active Scanning Responses . | . . . Cargo Convoy Interrupts . | . . . Stealth | -11 -10 -10 --------- Run | Yrd Mat Sub Distress Signals 2 | . 2 . Communications Jammed . | . . . Distress Signals . | . . . Times Spotted 43 | . 30 13 Peak Tracking Total 7 | . 7 3 Tactical Retreats 3 | . 3 . Traps | -11 -10 -10 ------- Run | Yrd Mat Sub Traps Triggered 2 | . 2 . Indirectly . | . . . Trap Hack Attempts . | . . . Triggered . | . . . Disarmed . | . . . Reprogrammed . | . . . Reused . | . . . Traps Extracted . | . . . Installed . | . . . Triggered . | . . . Machines | -11 -10 -10 ---------- Run | Yrd Mat Sub Machines Disabled . | . . . Max in Single Turn . | . . . Machines Repaired . | . . . Machines Dismantled . | . . . Machines Sabotaged . | . . . Overloaded Fab Kills . | . . . Hacking | -11 -10 -10 --------- Run | Yrd Mat Sub Machines Accessed 9 | . 9 . Terminals 6 | . 6 . Fabricators . | . . . Repair Stations 1 | . 1 . Recycling Units 2 | . 2 . Scanalyzers . | . . . Garrison Access . | . . . Total Hacks 25 | . 25 . Successful 14 | . 14 . Failed 11 | . 11 . Catastrophic 1 | . 1 . Database Lockouts . | . . . Manual 12 | . 12 . Terminals 15 | . 15 . Fabricators . | . . . Repair Stations 5 | . 5 . Recycling Units 5 | . 5 . Scanalyzers . | . . . Garrison Access . | . . . Terminal Hacks 8 | . 8 . Robot Analysis 2 | . 2 . Branch Access Points 1 | . 1 . Unreport Threat 1 | . 1 . Locate Traps 2 | . 2 . Zone Layout 2 | . 2 . Fabricator Hacks . | . . . Repair Station Hacks 4 | . 4 . Scan Component 2 | . 2 . Repair 2 | . 2 . Recycling Unit Hacks . | . . . Scanalyzer . | . . . Garrison Access Hacks . | . . . Unauthorized Hacks 2 | . 2 . Terminals 2 | . 2 . Botnet 2 | . 2 . Fabricators . | . . . Repair Stations . | . . . Recycling Units . | . . . Scanalyzers . | . . . Garrison Access . | . . . Data Cores Recovered . | . . . Used . | . . . Hacking Detections 8 | . 8 . Full Trace Events . | . . . Feedback Events . | . . . Feedback Blocked . | . . . Robot Schematics Acquired . | . . . Robots Built . | . . . Authchips . | . . . Time . | . . . Total Robot Build Rating . | . . . Part Schematics Acquired . | . . . Parts Built . | . . . Authchips . | . . . Time . | . . . Total Part Build Rating . | . . . Parts Repaired 2 | . 2 . Time 58 | . 58 . Parts Recycled . | . . . Recycled Matter . | . . . Retrieved Matter . | . . . Retrieved Components . | . . . Parts Scanalyzed . | . . . Part Schematics Acquired . | . . . Parts Damaged . | . . . Bothacking | -11 -10 -10 ------------ Run | Yrd Mat Sub Used RIF Installer . | . . . Robots Hacked . | . . . Non-combat . | . . . Combat . | . . . Robot Hacks Applied . | . . . Relay Couplers Released . | . . . Fabnet Peak Effective % . | . . . Robots Rewired . | . . . Allies Hacked . | . . . Hacks Repelled . | . . . Allies | -11 -10 -10 -------- Run | Yrd Mat Sub Total Allies . | . . . Largest Group . | . . . Highest-Rated Group . | . . . Highest-Rated Ally . | . . . Total Orders . | . . . Ally Attacks . | . . . Total Damage . | . . . Kills . | . . . Allies Corrupted . | . . . Allies Melted . | . . . Intel | -11 -10 -10 ------- Run | Yrd Mat Sub Robot Analysis Total 2 | . 2 . Derelict Logs Recovered 1 | . . 1 Drone Launches . | . . . Drone Recoveries . | . . . Exploration | -11 -10 -10 ------------- Run | Yrd Mat Sub Turns Passed 2693 | 65 1153 1475 Spaces Moved 1718 | 40 684 994 Core 2 | 2 . . Treads 183 | . 1 182 Legs . | . . . Wheels 1533 | 38 683 812 Hover . | . . . Flight . | . . . Fastest Speed 50 | 50 95 110 Average Speed 112 | 89 104 119 Slowest Speed 160 | 95 160 160 Overloaded Moves . | . . . Propulsion Burnouts . | . . . Robots Hopped . | . . . Cave-ins Triggered . | . . . Exploration Rate (%) 52 | 5 98 53 Regions Visited 2 Branch Regions 1 Pre-discovered Areas 2 | . . 2 Known Exits Taken . | . . . Unknown Exits Taken 2 | 1 1 . Scrap Searched . | . . . Spaces Dug 25 | . 11 14 Terrain Destroyed 66 | . 11 55 Melee 4 | . . 4 Projectile 1 | . . 1 AOE 61 | . 11 50 Terrain Rammed . | . . . Walls Destroyed . | . . . Machines Disabled . | . . . Actions | -11 -10 -10 --------- Run | Yrd Mat Sub Total 2247 | 58 995 1194 Wait 285 | 3 176 106 Move 1716 | 39 683 994 Hop . | . . . Pick Up 29 | 6 16 7 Fast Attach 13 | 6 6 1 Attach 6 | . 1 5 Detach . | . . . Swap 34 | . 16 18 Drop 29 | . 21 8 Fire 128 | 4 76 48 Melee 7 | . . 7 Ram . | . . . Kick . | . . . Crush . | . . . Escape Stasis . | . . . Rewire . | . . . Trap . | . . . Miscellaneous . | . . . Route ------- -11/Scrapyard -10/Materials (discovered 5 exits: [*Mat x3] / *Min / [*Sub]) -10/Subcaves History --------- Turn | Location | Event 25 | -11/Scrapyard | Discovered new exit (range 16) 66 | -11/Scrapyard | Entered Materials 198 | -10/Materials | Discovered new exit (range 6) 311 | -10/Materials | Build established: Mutant 435 | -10/Materials | Discovered new exit (range 10) 688 | -10/Materials | Discovered new exit (range 12) 719 | -10/Materials | Build established: Scavenger-Mutant 785 | -10/Materials | Repaired Particle Gun 813 | -10/Materials | Repaired Lgt. Treads 836 | -10/Materials | Identified exit to Mines 863 | -10/Materials | Discovered new exit (range 15) 1114 | -10/Materials | Discovered new exit (range 7) 1219 | -10/Materials | Entered Subcaves 1285 | -10/Subcaves | Learned location of Zion (-7) 1532 | -10/Subcaves | A swath of the cavern ceiling suddenly collapsed 1639 | -10/Subcaves | Met a Zionite searching for "candidates" 1881 | -10/Subcaves | Shifting Twisted Machinery released Shrapnel Trap 1881 | -10/Subcaves | Shifting Twisted Machinery released Mak. Hammer 2223 | -10/Subcaves | Ambushed by Subdwellers from Twisted Machinery 2227 | -10/Subcaves | Core integrity fell below 50% 2429 | -10/Subcaves | Shifting Twisted Machinery released Flamer 2435 | -10/Subcaves | Shifting Twisted Machinery released Scrap Shield 2571 | -10/Subcaves | A Subdweller sparked back to life 2597 | -10/Subcaves | Core integrity fell below 20% 2643 | -10/Subcaves | Found Prototype Leg 2694 | -10/Subcaves | Destroyed by 6D-Z7F(R) with Subdweller Machine Gun Last Messages --------------- 02606_ 28-2TA(R) destroyed. 02607_ K6-DD3(u) tweaks Twisted Machinery. 02612_ Acquired 28 matter. 02617_ Acquired Sub. Monowheel. 02625_ Subatomizers dissect the Sub. Laser. 02630_ Acquired 53 matter. 02636_ Dropped Lgt. Treads. 02638_ Subatomizers dissect the Sub. Monowheel. 02638_ Acquired Sub. Power Source. 02641_ Dropped Particle Gun. 02642_ Dropped EM Pulse Gun. 02642_ Dropped Ion Engine. 02643_ Acquired Prototype Leg. 02646_ Dropped Lgt. Ion Engine. 02659_ Acquired 12 matter. 02662_ Acquired 5 matter. 02667_ Acquired 3 matter. 02673_ Subatomizers dissect the Sub. Monowheel. 02682_ 5Y-DMP(R) destroyed. 02691_ 6D-Z7F(R) affixes Scrap Shield Fragment to Scrap Shield. Map ----- +----------------------------------------------------+ | ?????????????# ?????????????????????????????? | | ??????????????? ?????????????????????????????? | | ?????????????? ??????????????????????????????? | | ?????????????### #?????????????????????????????? | | ?????????????### ###????????????????????????????? | | ?????????????## ###????????????????????????????? | | ?????????????### " ## #??????????????????????????? | | ?????#######?### ######?????????????????????????? | | ################ "" ###?????????????????????????? | | ####### ##### "" " "##?????????????????????????? | | # ## ## # " ## "###????????????????????????? | | """ !"###????????????????????????? | | ### ### ##"""" "" ###???????????????????????? | | ### ### ##"" ## " ####??????????????????????? | | #### ### ####### ###?######???????????????? | | ##### #### "####### ########## ?????????????? | | ##### ######""""###### #### # ####?????????????? | | ???##########""""###### ### # ##?????????????? | | ???#####??####"""""###### ###?????????????? | | ???????????#####"=""##### ####??????????????? | | ???????????## "=[ |""#### #####??????????????? | | ???????????## &*!"[ "" ####????????????????? | | ???????????#" &&! ## & #####?????????????????? | | ???????????#" &" ### ####??????????????????? | | ???????????### " ### ##????????????????????? | | ???????????######### @ ##????????????????????? | | ??????????????????## " #### ##??????????????? | | ??????????????????####"####R ###?????????????? | | ??????????????????####"####* ##?????????????? | | ????????????????????" "#? ##?????????????? | | ????????????????????"" "?? ###?????????????? | | ???????????????????"""" " ##?????????????? | | ????????????????????"" " # ###?????????????? | | ???????????????????????"""" #####??????????????? | | ??????????????????????? "" #####??????????????? | | ??????????????????????? ### #??????????????????? | | ??????????????????????? ??? ??????????????????? | | ??????????????????????"""??? ??????????????????? | | ???????????????????????????? ??????????????????? | | ????????????????????????????### ?????????????????? | | ???????????????????????????????#?????????????????? | | ?????????????????????????????????????????????????? | | ?????????????????????????????????????????????????? | | ?????????????????????????????????????????????????? | | ?????????????????????????????????????????????????? | | ?????????????????????????????????????????????????? | | ?????????????????????????????????????????????????? | | ??###????????????????????????????????????????????? | | ??####?###???????????????????????????????????????? | | # ######???????????????????????????????????????? | +----------------------------------------------------+ Best States ------------- Heat Dissipation 39 Energy Generation 10 Energy Capacity 250 Matter Stores 300 Matter Capacity 300 Sight Range 16 Terrain Scan Density 10 Evasion (%) 44 Recoil Reduction 2 Item Schematics ----------------- None Robot Schematics ------------------ None Fabricated ------------ Nothing Alien Tech Used ----------------- None Achievements -------------- None Challenges ------------ None Game ------ Seed EncryptedLaserTorch Manual? 0 Play Time 00:17:40 Cumulative 1367.6 hours Start 2024.04.20 @ 20:38:18 End 2024.04.20 @ 20:52:58 Sessions 1 Manual Loads 0 Difficulty Rogue Special Mode None Game No. 980 Rogue 940 Adventurer 40 Explorer 0 Win Type - Total 171 Types 77/8/60/2/1/4/16/2/1 Lore% 94 Gallery% 97 Achievement% 86 Wizard Run 0 Options --------- Layout 0 ASCII 0 Keyboard 0 Movement Numpad Keybinds 0 Fullscreen 0 Font 20/Terminus Map View 76x50 Zoom Use 0% Tactical HUD 1 Map Filters NONE Filters NONE Steam 1 RUN: dcb40131-c784-4973-812c-179ad5065c39